[Event "Early-Titled-Tuesday-Blitz-January-23-2024"]
[Site "Chess.com"]
[Date "2024.01.23"]
[Round "5"]
[White "hakanazeri2"]
[Black "Cheer_Down"]
[Result "1-0"]
[WhiteElo "2583"]
[BlackElo "2449"]
[TimeControl "180+1"]
[EndTime "8:55:19 PST"]
[Termination "hakanazeri2 won by resignation"]

1. c4 {[%clk 0:02:55.9]} 1... e6 {[%clk 0:02:59.7]} 2. Nf3 {[%clk 0:02:55.1]}
2... d5 {[%clk 0:03:00]} 3. d4 {[%clk 0:02:54.8]} 3... Nf6 {[%clk 0:02:59]} 4.
g3 {[%clk 0:02:53.7]} 4... Be7 {[%clk 0:02:58.4]} 5. Bg2 {[%clk 0:02:54.6]} 5...
O-O {[%clk 0:02:58.4]} 6. O-O {[%clk 0:02:55]} 6... dxc4 {[%clk 0:02:58.6]} 7.
Qc2 {[%clk 0:02:54.9]} 7... a6 {[%clk 0:02:58.6]} 8. a4 {[%clk 0:02:53.1]} 8...
Bd7 {[%clk 0:02:58.1]} 9. Rd1 {[%clk 0:02:50.3]} 9... Bc6 {[%clk 0:02:55.7]} 10.
Bg5 {[%clk 0:02:49.6]} 10... Nbd7 {[%clk 0:02:50.6]} 11. Nbd2 {[%clk 0:02:41.2]}
11... b5 {[%clk 0:02:46.3]} 12. b3 {[%clk 0:02:29.2]} 12... h6 {[%clk
0:02:42.5]} 13. Bxf6 {[%clk 0:02:26.2]} 13... Nxf6 {[%clk 0:02:42.4]} 14. axb5
{[%clk 0:02:26]} 14... axb5 {[%clk 0:02:42.2]} 15. bxc4 {[%clk 0:02:25.7]} 15...
bxc4 {[%clk 0:02:37.4]} 16. Rxa8 {[%clk 0:02:19]} 16... Qxa8 {[%clk 0:02:35.5]}
17. Qxc4 {[%clk 0:02:17]} 17... Rb8 {[%clk 0:02:24.4]} 18. Rc1 {[%clk
0:01:48.5]} 18... Rb6 {[%clk 0:02:17.2]} 19. Qc2 {[%clk 0:01:41.2]} 19... Bd6
{[%clk 0:02:10.4]} 20. Nc4 {[%clk 0:01:01.6]} 20... Ra6 {[%clk 0:02:10]} 21. Ne1
{[%clk 0:00:57.2]} 21... Bxg2 {[%clk 0:02:05.6]} 22. Nxg2 {[%clk 0:00:58.1]}
22... Ra2 {[%clk 0:02:00]} 23. Qd3 {[%clk 0:00:55.8]} 23... g6 {[%clk
0:01:52.6]} 24. Nh4 {[%clk 0:00:45.1]} 24... Kg7 {[%clk 0:01:49.1]} 25. Nf3
{[%clk 0:00:43.9]} 25... Ra1 {[%clk 0:01:36.1]} 26. Rxa1 {[%clk 0:00:41.5]}
26... Qxa1+ {[%clk 0:01:37]} 27. Kg2 {[%clk 0:00:42.4]} 27... Qa8 {[%clk
0:01:34.7]} 28. h3 {[%clk 0:00:35.7]} 28... Qd5 {[%clk 0:01:31.2]} 29. Nd2
{[%clk 0:00:32.7]} 29... e5 {[%clk 0:01:13.4]} 30. e4 {[%clk 0:00:30.6]} 30...
Qe6 {[%clk 0:01:09.3]} 31. Nc4 {[%clk 0:00:18.6]} 31... Nd7 {[%clk 0:01:04.7]}
32. d5 {[%clk 0:00:16.2]} 32... Qe8 {[%clk 0:00:59.2]} 33. Nfd2 {[%clk
0:00:09.6]} 33... Nc5 {[%clk 0:00:57.6]} 34. Qe3 {[%clk 0:00:10.1]} 34... Qb5
{[%clk 0:00:55.3]} 35. Qc3 {[%clk 0:00:08.5]} 35... Nd7 {[%clk 0:00:50.4]} 36.
Nf3 {[%clk 0:00:05]} 36... f6 {[%clk 0:00:49.7]} 37. Nxd6 {[%clk 0:00:05.1]}
37... cxd6 {[%clk 0:00:49.7]} 38. Qc7 {[%clk 0:00:05.5]} 38... Kf7 {[%clk
0:00:42.9]} 39. Qxd6 {[%clk 0:00:05.6]} 39... Qa4 {[%clk 0:00:41.1]} 40. Qe6+
{[%clk 0:00:05.4]} 40... Kg7 {[%clk 0:00:39.6]} 41. Qe7+ {[%clk 0:00:05.3]}
41... Kg8 {[%clk 0:00:37.8]} 42. Qe8+ {[%clk 0:00:05.6]} 42... Nf8 {[%clk
0:00:31.2]} 43. Qxa4 {[%clk 0:00:05]} 1-0

[Event "Early-Titled-Tuesday-Blitz-January-23-2024"]
[Site "Chess.com"]
[Date "2024.01.23"]
[Round "5"]
[White "Kapitan_Bayan"]
[Black "leepday"]
[Result "1/2-1/2"]
[WhiteElo "2319"]
[BlackElo "2165"]
[TimeControl "180+1"]
[EndTime "8:55:19 PST"]
[Termination "Game drawn by repetition"]

1. e4 {[%clk 0:03:00.9]} 1... c6 {[%clk 0:02:46.8]} 2. d4 {[%clk 0:02:54.9]}
2... d5 {[%clk 0:02:46.4]} 3. exd5 {[%clk 0:02:55.2]} 3... cxd5 {[%clk
0:02:46.4]} 4. Nf3 {[%clk 0:02:55.6]} 4... Nf6 {[%clk 0:02:45.9]} 5. Ne5 {[%clk
0:02:55.5]} 5... a6 {[%clk 0:02:43]} 6. c3 {[%clk 0:02:54.3]} 6... Bf5 {[%clk
0:02:41.7]} 7. Bd3 {[%clk 0:02:54.4]} 7... Bxd3 {[%clk 0:02:41.3]} 8. Nxd3
{[%clk 0:02:55.3]} 8... e6 {[%clk 0:02:41.4]} 9. O-O {[%clk 0:02:55.9]} 9... Bd6
{[%clk 0:02:41]} 10. Bf4 {[%clk 0:02:56]} 10... O-O {[%clk 0:02:39.5]} 11. Nd2
{[%clk 0:02:54.7]} 11... Nc6 {[%clk 0:02:39.4]} 12. Qf3 {[%clk 0:02:49.8]} 12...
Qc7 {[%clk 0:02:37.2]} 13. Rfe1 {[%clk 0:02:46.6]} 13... Rae8 {[%clk 0:02:31.4]}
14. Bxd6 {[%clk 0:02:30.4]} 14... Qxd6 {[%clk 0:02:31.1]} 15. Ne5 {[%clk
0:02:30.7]} 15... Ne7 {[%clk 0:02:26]} 16. Qd3 {[%clk 0:02:28.2]} 16... Ng6
{[%clk 0:02:22.1]} 17. Ndf3 {[%clk 0:02:26.1]} 17... Nf4 {[%clk 0:02:20.8]} 18.
Qd2 {[%clk 0:02:19.9]} 18... Ng6 {[%clk 0:02:14.6]} 19. Nxg6 {[%clk 0:02:17.7]}
19... fxg6 {[%clk 0:02:12.1]} 20. Qd3 {[%clk 0:02:07.7]} 20... Ne4 {[%clk
0:02:11.9]} 21. Re2 {[%clk 0:01:44.9]} 21... Rf5 {[%clk 0:02:11.5]} 22. Ne5
{[%clk 0:01:42.9]} 22... Rh5 {[%clk 0:02:00.9]} 23. f3 {[%clk 0:01:40.7]} 23...
Ng5 {[%clk 0:01:53.8]} 24. Rae1 {[%clk 0:01:28.3]} 24... Rf8 {[%clk 0:01:53.6]}
25. h3 {[%clk 0:01:08.7]} 25... Rf4 {[%clk 0:01:29.4]} 26. Qe3 {[%clk
0:01:04.4]} 26... Rfh4 {[%clk 0:01:18.2]} 27. Qd3 {[%clk 0:00:26.4]} 27... Nxh3+
{[%clk 0:01:11.8]} 28. gxh3 {[%clk 0:00:25.4]} 28... Rxh3 {[%clk 0:01:12.7]} 29.
Rg2 {[%clk 0:00:24.4]} 29... Qe7 {[%clk 0:01:08.5]} 30. Ng4 {[%clk 0:00:21.9]}
30... Rh1+ {[%clk 0:01:04.3]} 31. Kf2 {[%clk 0:00:18.3]} 31... Qh4+ {[%clk
0:01:04]} 32. Rg3 {[%clk 0:00:16]} 32... Rxe1 {[%clk 0:01:02.2]} 33. Kxe1 {[%clk
0:00:16.1]} 33... Qxg3+ {[%clk 0:01:02.1]} 34. Kd2 {[%clk 0:00:11.5]} 34... Rh1
{[%clk 0:00:55.8]} 35. Qe3 {[%clk 0:00:05.4]} 35... Qg2+ {[%clk 0:00:51.2]} 36.
Nf2 {[%clk 0:00:04.8]} 36... Rh2 {[%clk 0:00:47.8]} 37. Qxe6+ {[%clk 0:00:04.5]}
37... Kf8 {[%clk 0:00:45.6]} 38. Qd6+ {[%clk 0:00:05.1]} 38... Ke8 {[%clk
0:00:44.2]} 39. Qe6+ {[%clk 0:00:05]} 39... Kd8 {[%clk 0:00:41.9]} 40. Qd6+
{[%clk 0:00:05.2]} 40... Kc8 {[%clk 0:00:41.6]} 41. Qf8+ {[%clk 0:00:05.5]}
41... Kc7 {[%clk 0:00:41.3]} 42. Qe7+ {[%clk 0:00:05.8]} 42... Kb8 {[%clk
0:00:41.4]} 43. Qf8+ {[%clk 0:00:04.1]} 43... Ka7 {[%clk 0:00:40.4]} 44. Qc5+
{[%clk 0:00:04.3]} 44... Ka8 {[%clk 0:00:40.5]} 45. Qf8+ {[%clk 0:00:04.5]}
45... Ka7 {[%clk 0:00:40.8]} 46. Qc5+ {[%clk 0:00:04.8]} 46... Kb8 {[%clk
0:00:41.4]} 47. Qf8+ {[%clk 0:00:05]} 47... Kc7 {[%clk 0:00:41.7]} 48. Qe7+
{[%clk 0:00:05.4]} 48... Kc6 {[%clk 0:00:40.1]} 49. Qe6+ {[%clk 0:00:05.8]}
49... Kc7 {[%clk 0:00:34.5]} 50. Qe7+ {[%clk 0:00:06.2]} 1/2-1/2

[Event "Early-Titled-Tuesday-Blitz-January-23-2024"]
[Site "Chess.com"]
[Date "2024.01.23"]
[Round "5"]
[White "SashaKuzhilniy"]
[Black "m_ezat"]
[Result "0-1"]
[WhiteElo "2641"]
[BlackElo "2469"]
[TimeControl "180+1"]
[EndTime "8:55:21 PST"]
[Termination "m_ezat won by resignation"]

1. b3 {[%clk 0:03:00.9]} 1... d5 {[%clk 0:02:56.3]} 2. Bb2 {[%clk 0:03:01.8]}
2... Nc6 {[%clk 0:02:53.6]} 3. Nf3 {[%clk 0:02:59.8]} 3... Bg4 {[%clk
0:02:51.6]} 4. e3 {[%clk 0:03:00.3]} 4... a6 {[%clk 0:02:50.1]} 5. d4 {[%clk
0:02:57.6]} 5... e6 {[%clk 0:02:38.2]} 6. Be2 {[%clk 0:02:55.8]} 6... Nf6 {[%clk
0:02:38]} 7. Nbd2 {[%clk 0:02:55]} 7... Bb4 {[%clk 0:02:37.6]} 8. O-O {[%clk
0:02:55.1]} 8... O-O {[%clk 0:02:36.4]} 9. c4 {[%clk 0:02:51.5]} 9... Be7 {[%clk
0:02:20.8]} 10. a3 {[%clk 0:02:45.5]} 10... Re8 {[%clk 0:02:01.5]} 11. h3 {[%clk
0:02:44.9]} 11... Bh5 {[%clk 0:01:59.7]} 12. b4 {[%clk 0:02:44.3]} 12... Bxf3
{[%clk 0:01:55.2]} 13. Bxf3 {[%clk 0:02:40]} 13... Bf8 {[%clk 0:01:53]} 14. Qb3
{[%clk 0:02:36.8]} 14... g6 {[%clk 0:01:33.8]} 15. Rac1 {[%clk 0:02:32.6]} 15...
Bg7 {[%clk 0:01:29.5]} 16. a4 {[%clk 0:02:27.6]} 16... h5 {[%clk 0:01:15.9]} 17.
b5 {[%clk 0:02:06]} 17... Na5 {[%clk 0:01:09.8]} 18. Qb4 {[%clk 0:02:06.3]}
18... axb5 {[%clk 0:01:08.3]} 19. cxb5 {[%clk 0:02:04.7]} 19... c6 {[%clk
0:00:59]} 20. Be2 {[%clk 0:02:02.4]} 20... Bf8 {[%clk 0:00:49.1]} 21. Qc3 {[%clk
0:02:02.4]} 21... Bd6 {[%clk 0:00:48]} 22. Ba3 {[%clk 0:01:57.6]} 22... e5
{[%clk 0:00:44.6]} 23. Bxd6 {[%clk 0:01:52.2]} 23... Qxd6 {[%clk 0:00:44]} 24.
Nf3 {[%clk 0:01:48.4]} 24... exd4 {[%clk 0:00:42.4]} 25. Nxd4 {[%clk 0:01:48.6]}
25... Ne4 {[%clk 0:00:42.5]} 26. Qd3 {[%clk 0:01:29.5]} 26... c5 {[%clk
0:00:41.5]} 27. Nf3 {[%clk 0:01:29]} 27... b6 {[%clk 0:00:39.4]} 28. Rfd1 {[%clk
0:01:27.8]} 28... Rad8 {[%clk 0:00:39.5]} 29. Nd2 {[%clk 0:01:24.3]} 29... c4
{[%clk 0:00:38.5]} 30. Qc2 {[%clk 0:00:45.2]} 30... Nxd2 {[%clk 0:00:37.9]} 31.
Rxd2 {[%clk 0:00:45]} 31... Nb3 {[%clk 0:00:38.2]} 32. Rcd1 {[%clk 0:00:45.5]}
32... Nxd2 {[%clk 0:00:38.1]} 33. Rxd2 {[%clk 0:00:46.4]} 33... Qc5 {[%clk
0:00:37.3]} 34. Rd4 {[%clk 0:00:44.8]} 34... Re4 {[%clk 0:00:35.6]} 35. Rxe4
{[%clk 0:00:37.6]} 35... dxe4 {[%clk 0:00:35.5]} 36. Qxe4 {[%clk 0:00:36]} 36...
c3 {[%clk 0:00:32.5]} 37. Bc4 {[%clk 0:00:35.5]} 37... Kg7 {[%clk 0:00:29.2]}
38. Bb3 {[%clk 0:00:35.8]} 38... Rd2 {[%clk 0:00:22.9]} 39. Qf4 {[%clk
0:00:27.4]} 39... Qf5 {[%clk 0:00:17.8]} 40. Qh4 {[%clk 0:00:16.6]} 40... c2
{[%clk 0:00:15.4]} 41. Bxc2 {[%clk 0:00:17.2]} 41... Rxc2 {[%clk 0:00:15.3]} 42.
Qd4+ {[%clk 0:00:17.3]} 42... Qf6 {[%clk 0:00:14.5]} 43. a5 {[%clk 0:00:15.1]}
43... Qxd4 {[%clk 0:00:11.5]} 44. exd4 {[%clk 0:00:16]} 44... bxa5 {[%clk
0:00:11.8]} 45. b6 {[%clk 0:00:16.9]} 45... Rb2 {[%clk 0:00:12]} 46. d5 {[%clk
0:00:17.8]} 46... Rxb6 {[%clk 0:00:11.9]} 47. d6 {[%clk 0:00:18.7]} 0-1

[Event "Early-Titled-Tuesday-Blitz-January-23-2024"]
[Site "Chess.com"]
[Date "2024.01.23"]
[Round "5"]
[White "Ceejay271"]
[Black "Vazabanga"]
[Result "0-1"]
[WhiteElo "2505"]
[BlackElo "2673"]
[TimeControl "180+1"]
[EndTime "8:55:22 PST"]
[Termination "Vazabanga won on time"]

1. d4 {[%clk 0:03:00.9]} 1... Nf6 {[%clk 0:02:58.7]} 2. Nf3 {[%clk 0:02:59.6]}
2... e6 {[%clk 0:02:58.5]} 3. c4 {[%clk 0:02:59.5]} 3... b6 {[%clk 0:02:58.6]}
4. a3 {[%clk 0:02:57.3]} 4... Ba6 {[%clk 0:02:58.2]} 5. Qc2 {[%clk 0:02:56.1]}
5... d5 {[%clk 0:02:58.3]} 6. cxd5 {[%clk 0:02:52.7]} 6... Nxd5 {[%clk
0:02:59.2]} 7. e4 {[%clk 0:02:51.1]} 7... Bxf1 {[%clk 0:03:00]} 8. Kxf1 {[%clk
0:02:51]} 8... Nf6 {[%clk 0:02:58.3]} 9. g3 {[%clk 0:02:44.1]} 9... Be7 {[%clk
0:02:57.3]} 10. Kg2 {[%clk 0:02:43.7]} 10... O-O {[%clk 0:02:57.4]} 11. Nc3
{[%clk 0:02:43.4]} 11... Nbd7 {[%clk 0:02:51.5]} 12. Rd1 {[%clk 0:02:40.8]}
12... Qc8 {[%clk 0:02:40.9]} 13. Bf4 {[%clk 0:02:29.6]} 13... Qb7 {[%clk
0:02:31.5]} 14. Kg1 {[%clk 0:02:26.4]} 14... Rac8 {[%clk 0:02:25.8]} 15. Rac1
{[%clk 0:02:25]} 15... Rfd8 {[%clk 0:02:00.5]} 16. Qe2 {[%clk 0:02:07.8]} 16...
Nf8 {[%clk 0:01:56]} 17. Ne5 {[%clk 0:01:58.1]} 17... c5 {[%clk 0:01:48.7]} 18.
dxc5 {[%clk 0:01:48.4]} 18... Bxc5 {[%clk 0:01:46.8]} 19. Bg5 {[%clk 0:01:35.1]}
19... Be7 {[%clk 0:01:03.7]} 20. f3 {[%clk 0:01:30]} 20... h6 {[%clk 0:01:02.8]}
21. Be3 {[%clk 0:01:29.7]} 21... N8d7 {[%clk 0:00:55.7]} 22. Nxd7 {[%clk
0:01:27.4]} 22... Nxd7 {[%clk 0:00:54.7]} 23. Nb5 {[%clk 0:01:13.7]} 23... a6
{[%clk 0:00:34.1]} 24. Nd6 {[%clk 0:00:55.3]} 24... Bxd6 {[%clk 0:00:34]} 25.
Rxd6 {[%clk 0:00:52.9]} 25... Rxc1+ {[%clk 0:00:33.1]} 26. Bxc1 {[%clk
0:00:53.6]} 26... Rc8 {[%clk 0:00:32.5]} 27. Be3 {[%clk 0:00:50.3]} 27... b5
{[%clk 0:00:31.8]} 28. Qd3 {[%clk 0:00:41.7]} 28... Ne5 {[%clk 0:00:30.3]} 29.
Qd1 {[%clk 0:00:24]} 29... Nc4 {[%clk 0:00:21.3]} 30. Rd8+ {[%clk 0:00:23.7]}
30... Kh7 {[%clk 0:00:18.5]} 31. Rxc8 {[%clk 0:00:22.8]} 31... Qxc8 {[%clk
0:00:18.4]} 32. Bc1 {[%clk 0:00:22.5]} 32... Qc5+ {[%clk 0:00:17.4]} 33. Kg2
{[%clk 0:00:22.9]} 33... Ne5 {[%clk 0:00:15.7]} 34. b3 {[%clk 0:00:17.2]} 34...
Qc3 {[%clk 0:00:14.2]} 35. Bf4 {[%clk 0:00:15.1]} 35... Nd3 {[%clk 0:00:14]} 36.
Be3 {[%clk 0:00:09.4]} 36... Ne1+ {[%clk 0:00:14.1]} 37. Kf2 {[%clk 0:00:09.7]}
37... Nc2 {[%clk 0:00:14.4]} 38. Qd2 {[%clk 0:00:04.7]} 38... Qxb3 {[%clk
0:00:12.4]} 39. Bc5 {[%clk 0:00:04.9]} 39... Qc4 {[%clk 0:00:11.3]} 40. Be3
{[%clk 0:00:02.1]} 40... Nxa3 {[%clk 0:00:10.4]} 0-1

[Event "Early-Titled-Tuesday-Blitz-January-23-2024"]
[Site "Chess.com"]
[Date "2024.01.23"]
[Round "5"]
[White "WiktoriaPOL"]
[Black "Kamilek84"]
[Result "0-1"]
[WhiteElo "2236"]
[BlackElo "2683"]
[TimeControl "180+1"]
[EndTime "8:55:22 PST"]
[Termination "Kamilek84 won on time"]

1. c4 {[%clk 0:02:56.9]} 1... b6 {[%clk 0:02:53.1]} 2. e4 {[%clk 0:02:55.7]}
2... c5 {[%clk 0:02:52.5]} 3. Nc3 {[%clk 0:02:52.6]} 3... Bb7 {[%clk 0:02:52.5]}
4. Nf3 {[%clk 0:02:50.9]} 4... e6 {[%clk 0:02:50.8]} 5. d4 {[%clk 0:02:51.1]}
5... cxd4 {[%clk 0:02:50.7]} 6. Nxd4 {[%clk 0:02:52]} 6... d6 {[%clk 0:02:50.3]}
7. Be2 {[%clk 0:02:51.4]} 7... a6 {[%clk 0:02:50.3]} 8. O-O {[%clk 0:02:51.4]}
8... Nd7 {[%clk 0:02:50.8]} 9. f4 {[%clk 0:02:47.5]} 9... Ngf6 {[%clk
0:02:50.1]} 10. Bf3 {[%clk 0:02:47.7]} 10... Qc7 {[%clk 0:02:47.7]} 11. Qe2
{[%clk 0:02:46.2]} 11... Be7 {[%clk 0:02:46.2]} 12. Be3 {[%clk 0:02:45.3]} 12...
O-O {[%clk 0:02:44.1]} 13. Rac1 {[%clk 0:02:43.4]} 13... Rac8 {[%clk 0:02:36.5]}
14. b3 {[%clk 0:02:39.3]} 14... Qb8 {[%clk 0:02:36.1]} 15. f5 {[%clk 0:02:34.7]}
15... e5 {[%clk 0:02:24.7]} 16. Nc2 {[%clk 0:02:34.2]} 16... b5 {[%clk
0:02:21.9]} 17. Nd5 {[%clk 0:02:27.2]} 17... Bd8 {[%clk 0:02:02.3]} 18. Ncb4
{[%clk 0:02:15.4]} 18... a5 {[%clk 0:01:52.5]} 19. Nd3 {[%clk 0:02:05.1]} 19...
Bxd5 {[%clk 0:01:44]} 20. cxd5 {[%clk 0:02:02.2]} 20... Bb6 {[%clk 0:01:44.4]}
21. Rc6 {[%clk 0:01:45.1]} 21... Rxc6 {[%clk 0:00:56.5]} 22. dxc6 {[%clk
0:01:44.6]} 22... Qa7 {[%clk 0:00:56.1]} 23. Re1 {[%clk 0:01:13.3]} 23... Nc5
{[%clk 0:00:50.5]} 24. Nxc5 {[%clk 0:01:04.8]} 24... Bxc5 {[%clk 0:00:50.6]} 25.
Kh1 {[%clk 0:00:51.6]} 25... Rc8 {[%clk 0:00:45.3]} 26. Bg5 {[%clk 0:00:20.5]}
26... Qb6 {[%clk 0:00:44.8]} 27. Bxf6 {[%clk 0:00:14.3]} 27... gxf6 {[%clk
0:00:45.7]} 28. Rd1 {[%clk 0:00:08.3]} 28... Qxc6 {[%clk 0:00:40.7]} 29. Qd2
{[%clk 0:00:08.7]} 29... Kf8 {[%clk 0:00:30.2]} 30. Qh6+ {[%clk 0:00:08.6]}
30... Ke7 {[%clk 0:00:29.7]} 31. Qxh7 {[%clk 0:00:08.5]} 31... Bd4 {[%clk
0:00:25.3]} 32. Bh5 {[%clk 0:00:07.7]} 32... Rf8 {[%clk 0:00:25.3]} 33. Bf3
{[%clk 0:00:06.5]} 33... Qc2 {[%clk 0:00:24.6]} 34. a3 {[%clk 0:00:05]} 34...
Qxb3 {[%clk 0:00:23.9]} 35. Qh6 {[%clk 0:00:03.5]} 35... Qxa3 {[%clk 0:00:20.6]}
36. Rc1 {[%clk 0:00:03.8]} 36... Bc5 {[%clk 0:00:17.4]} 37. Qd2 {[%clk 0:00:03]}
37... Qe3 {[%clk 0:00:13.5]} 38. Qc2 {[%clk 0:00:01.9]} 38... a4 {[%clk
0:00:11.7]} 0-1

[Event "Early-Titled-Tuesday-Blitz-January-23-2024"]
[Site "Chess.com"]
[Date "2024.01.23"]
[Round "5"]
[White "MatthewG-p4p"]
[Black "Yeritsyaan"]
[Result "1-0"]
[WhiteElo "2890"]
[BlackElo "2647"]
[TimeControl "180+1"]
[EndTime "8:55:23 PST"]
[Termination "MatthewG-p4p won by resignation"]

1. e4 {[%clk 0:03:00.1]} 1... e5 {[%clk 0:02:55.2]} 2. Nf3 {[%clk 0:02:59.6]}
2... Nc6 {[%clk 0:02:54.1]} 3. d4 {[%clk 0:02:59.6]} 3... exd4 {[%clk
0:02:53.1]} 4. c3 {[%clk 0:03:00.2]} 4... d5 {[%clk 0:02:40.2]} 5. exd5 {[%clk
0:02:46.7]} 5... Qxd5 {[%clk 0:02:41.1]} 6. cxd4 {[%clk 0:02:47.3]} 6... Nf6
{[%clk 0:02:38.4]} 7. Nc3 {[%clk 0:02:47.6]} 7... Bb4 {[%clk 0:02:35.9]} 8. Bd3
{[%clk 0:02:44]} 8... O-O {[%clk 0:02:32.7]} 9. O-O {[%clk 0:02:43.9]} 9... Qh5
{[%clk 0:02:32.5]} 10. h3 {[%clk 0:02:09.6]} 10... Bf5 {[%clk 0:01:52]} 11. Be2
{[%clk 0:02:02.3]} 11... Rad8 {[%clk 0:01:41.2]} 12. Be3 {[%clk 0:01:36.1]}
12... Rfe8 {[%clk 0:01:35.2]} 13. Qb3 {[%clk 0:01:11.5]} 13... Bd6 {[%clk
0:01:26.7]} 14. Ne5 {[%clk 0:01:08.7]} 14... Qh4 {[%clk 0:00:56]} 15. Qxf7+
{[%clk 0:00:22.2]} 15... Kh8 {[%clk 0:00:56.3]} 16. Nf3 {[%clk 0:00:23]} 16...
Qh5 {[%clk 0:00:21]} 17. Qxh5 {[%clk 0:00:22.8]} 17... Nxh5 {[%clk 0:00:21.9]}
18. g4 {[%clk 0:00:23.5]} 18... Bc8 {[%clk 0:00:13]} 19. gxh5 {[%clk 0:00:22.4]}
19... Bxh3 {[%clk 0:00:13.8]} 20. Rfe1 {[%clk 0:00:21.8]} 20... Nb4 {[%clk
0:00:14.4]} 21. Rac1 {[%clk 0:00:19.5]} 21... Rf8 {[%clk 0:00:05]} 22. Ng5
{[%clk 0:00:18.4]} 22... Bf5 {[%clk 0:00:05.7]} 23. a3 {[%clk 0:00:18.1]} 23...
Nc2 {[%clk 0:00:04.8]} 24. Rxc2 {[%clk 0:00:15.9]} 24... Bxc2 {[%clk 0:00:04.1]}
25. Ne6 {[%clk 0:00:16.1]} 25... Kg8 {[%clk 0:00:02]} 26. Bc4 {[%clk 0:00:15.1]}
26... b5 {[%clk 0:00:01.1]} 27. Nxb5 {[%clk 0:00:14.9]} 27... Kh8 {[%clk
0:00:01.7]} 28. Nxd8 {[%clk 0:00:14.9]} 28... Rxd8 {[%clk 0:00:01.7]} 29. Nxd6
{[%clk 0:00:15.6]} 29... Rxd6 {[%clk 0:00:02.4]} 30. Bf4 {[%clk 0:00:16.1]}
30... Rd8 {[%clk 0:00:02.4]} 31. Bf7 {[%clk 0:00:15.5]} 31... Bf5 {[%clk
0:00:02.7]} 32. Bxc7 {[%clk 0:00:15.3]} 32... Rc8 {[%clk 0:00:01.9]} 33. Re8+
{[%clk 0:00:16]} 33... Rxe8 {[%clk 0:00:01.8]} 34. Bxe8 {[%clk 0:00:16.9]} 34...
Kg8 {[%clk 0:00:02.4]} 35. Bd6 {[%clk 0:00:17.4]} 35... Bg4 {[%clk 0:00:02.1]}
36. Kg2 {[%clk 0:00:16.7]} 36... Be2 {[%clk 0:00:02.2]} 37. Kg3 {[%clk
0:00:16.6]} 37... Bc4 {[%clk 0:00:01.8]} 38. Kf4 {[%clk 0:00:17.2]} 38... a5
{[%clk 0:00:01.2]} 39. Ke5 {[%clk 0:00:17.5]} 39... Be2 {[%clk 0:00:01.4]} 40.
d5 {[%clk 0:00:17.5]} 40... Bxh5 {[%clk 0:00:01.7]} 1-0

[Event "Early-Titled-Tuesday-Blitz-January-23-2024"]
[Site "Chess.com"]
[Date "2024.01.23"]
[Round "5"]
[White "Yushko_Olga"]
[Black "KNVB"]
[Result "0-1"]
[WhiteElo "2182"]
[BlackElo "2758"]
[TimeControl "180+1"]
[EndTime "8:55:24 PST"]
[Termination "KNVB won by resignation"]

1. d4 {[%clk 0:02:59.9]} 1... Nf6 {[%clk 0:02:59.4]} 2. c4 {[%clk 0:02:59.7]}
2... e6 {[%clk 0:02:50.8]} 3. Nf3 {[%clk 0:02:50.7]} 3... b6 {[%clk 0:02:50]} 4.
Nc3 {[%clk 0:02:50.3]} 4... Bb7 {[%clk 0:02:48.4]} 5. g3 {[%clk 0:02:49.7]} 5...
Bb4 {[%clk 0:02:47.8]} 6. Bg2 {[%clk 0:02:49.5]} 6... O-O {[%clk 0:02:46.4]} 7.
O-O {[%clk 0:02:49.5]} 7... Bxc3 {[%clk 0:02:45.3]} 8. bxc3 {[%clk 0:02:49.6]}
8... d6 {[%clk 0:02:41.8]} 9. Qc2 {[%clk 0:02:48.6]} 9... Be4 {[%clk 0:02:38.2]}
10. Qb3 {[%clk 0:02:45.3]} 10... c5 {[%clk 0:02:34]} 11. a4 {[%clk 0:02:43.7]}
11... Nc6 {[%clk 0:02:33.3]} 12. Rd1 {[%clk 0:02:40.3]} 12... Na5 {[%clk
0:02:23.6]} 13. Qa2 {[%clk 0:02:40.2]} 13... Qe7 {[%clk 0:01:57]} 14. Rb1 {[%clk
0:02:34.1]} 14... Bxb1 {[%clk 0:01:32.3]} 15. Qxb1 {[%clk 0:02:35]} 15... Rac8
{[%clk 0:01:33]} 16. d5 {[%clk 0:02:29]} 16... Nxc4 {[%clk 0:00:44.5]} 17. dxe6
{[%clk 0:02:20.1]} 17... Qxe6 {[%clk 0:00:45.4]} 18. Qa2 {[%clk 0:02:08.4]}
18... h6 {[%clk 0:00:28]} 19. Ne1 {[%clk 0:02:02.7]} 19... Rfe8 {[%clk
0:00:18.9]} 20. Nd3 {[%clk 0:01:59.5]} 20... Qxe2 {[%clk 0:00:14.8]} 21. Qxe2
{[%clk 0:01:54.5]} 21... Rxe2 {[%clk 0:00:15.7]} 22. Bf1 {[%clk 0:01:45.9]}
22... Ra2 {[%clk 0:00:13]} 23. Nf4 {[%clk 0:01:44.6]} 23... Rxa4 {[%clk
0:00:10.3]} 24. Ng2 {[%clk 0:01:01.7]} 24... Re8 {[%clk 0:00:08.7]} 25. Bf4
{[%clk 0:00:54.7]} 25... b5 {[%clk 0:00:07.1]} 26. Bxd6 {[%clk 0:00:52.1]} 26...
Nxd6 {[%clk 0:00:07.4]} 27. Rxd6 {[%clk 0:00:52]} 27... Ra1 {[%clk 0:00:07.6]}
28. Ne3 {[%clk 0:00:52.1]} 28... Rb8 {[%clk 0:00:04.8]} 29. Kg2 {[%clk
0:00:50.5]} 29... b4 {[%clk 0:00:05]} 30. cxb4 {[%clk 0:00:49.5]} 30... cxb4
{[%clk 0:00:05.9]} 31. Rc6 {[%clk 0:00:43.4]} 31... b3 {[%clk 0:00:05.5]} 32.
Rc7 {[%clk 0:00:43.7]} 32... Rxf1 {[%clk 0:00:02.9]} 33. Nxf1 {[%clk 0:00:41.9]}
33... b2 {[%clk 0:00:03.5]} 34. Nd2 {[%clk 0:00:42.7]} 34... b1=Q {[%clk
0:00:03.6]} 35. Nxb1 {[%clk 0:00:42.7]} 35... Rxb1 {[%clk 0:00:04.5]} 36. Rxa7
{[%clk 0:00:43.3]} 36... Rb2 {[%clk 0:00:04.1]} 37. Kf3 {[%clk 0:00:42.9]} 37...
g6 {[%clk 0:00:03.7]} 38. Ra6 {[%clk 0:00:41.9]} 38... Kg7 {[%clk 0:00:03.7]}
39. Ra8 {[%clk 0:00:41.8]} 39... h5 {[%clk 0:00:03.8]} 40. h3 {[%clk 0:00:41.5]}
40... Nd7 {[%clk 0:00:02.8]} 41. g4 {[%clk 0:00:40.4]} 41... hxg4+ {[%clk
0:00:02.7]} 42. hxg4 {[%clk 0:00:41.1]} 42... g5 {[%clk 0:00:02.6]} 43. Ra5
{[%clk 0:00:40.2]} 43... Kg6 {[%clk 0:00:02.9]} 44. Ra6+ {[%clk 0:00:40.5]}
44... f6 {[%clk 0:00:03.3]} 45. Ra7 {[%clk 0:00:41]} 45... Ne5+ {[%clk
0:00:03.7]} 46. Kg3 {[%clk 0:00:41]} 46... Rb3+ {[%clk 0:00:04.1]} 47. Kg2
{[%clk 0:00:40.1]} 47... Nxg4 {[%clk 0:00:04.3]} 48. f3 {[%clk 0:00:38]} 48...
Ne5 {[%clk 0:00:04.5]} 49. Kg3 {[%clk 0:00:38.4]} 49... Rxf3+ {[%clk 0:00:04.6]}
0-1